{"text_format":"1","workbook":"xlsx","n_sheets":1,"sheets":["Metapopulation dynamics"],"not_rendered":{"charts":1,"images":0,"macros":1,"external_links":0,"defined_names":0,"comments":0,"pivot_tables":0},"unopened":[],"bounds":{"document_bytes":16777216,"sheet_cells":100000,"rows_first":2000,"rows_last":500,"rows_between":2000,"halvings":0,"cell_chars":16384,"cell_head_chars":4096},"cells_cut":0,"cells_raw":0,"read":"whole","date_system":"1900"}

{"sheet":"Metapopulation dynamics","index":0,"n_rows":27,"n_cols":31,"rows_kept":27,"cut":false,"hidden":false,"merged":[]}
["METAPOPULATION DYNAMICS",null,null,null,"Landscape extent",null,null,null,null,null,null,null,null,null,null,"Landscape occupancy, year t",null,null,null,null,null,null,null,null,null,null,"Year","f"]
["Model parameters:",null,null,"Origin",{"$f":"COLUMN()","v":5},{"$f":"COLUMN()","v":6},{"$f":"COLUMN()","v":7},{"$f":"COLUMN()","v":8},{"$f":"COLUMN()","v":9},{"$f":"COLUMN()","v":10},{"$f":"COLUMN()","v":11},{"$f":"COLUMN()","v":12},{"$f":"COLUMN()","v":13},{"$f":"COLUMN()","v":14},null,null,null,null,null,null,null,null,null,null,null,null,0,null,null,null,"Reset the landscape in P3:Y12"]
["r = number of rows in the landscape",5,null,{"$f":"ROW()","v":3},{"$f":"IF(AND(ROW()<=$B$5,COLUMN()<=$B$6),1,0)","v":1},1,1,1,1,0,0,0,0,0,null,null,null,null,null,null,null,null,null,null,null,null,1,null,null,null," =IF(RAND()<0.5,1,0)"]
["c = number of columns in the landscape",5,null,{"$f":"ROW()","v":4},1,1,1,1,1,0,0,0,0,0,null,null,null,null,null,null,null,null,null,null,null,null,2]
["row boundary =",{"$f":"ROW(D2)+B3","v":7},null,{"$f":"ROW()","v":5},1,1,1,1,1,0,0,0,0,0,null,null,null,null,null,null,null,null,null,null,null,null,3]
["column boundary = ",{"$f":"COLUMN(D2)+B4","v":9},null,{"$f":"ROW()","v":6},1,1,1,1,1,0,0,0,0,0,null,null,null,null,null,null,null,null,null,null,null,null,4]
["x = number of patches in system",{"$f":"B3*B4","v":25},null,{"$f":"ROW()","v":7},1,1,1,1,1,0,0,0,0,0,null,null,null,null,null,null,null,null,null,null,null,null,5]
["n = number of years under consideration",25,null,{"$f":"ROW()","v":8},0,0,0,0,0,0,0,0,0,0,null,null,null,null,null,null,null,null,null,null,null,null,6]
["pe = probability of local extinction",0.4,null,{"$f":"ROW()","v":9},0,0,0,0,0,0,0,0,0,0,null,null,null,null,null,null,null,null,null,null,null,null,7]
["pi = probability of local colonization",0.2,null,{"$f":"ROW()","v":10},0,0,0,0,0,0,0,0,0,0,null,null,null,null,null,null,null,null,null,null,null,null,8]
["f  = equilibrium number of patches occupied",{"$f":"B10/(B10+B9)","v":0.33333333333333331},null,{"$f":"ROW()","v":11},0,0,0,0,0,0,0,0,0,0,null,null,null,null,null,null,null,null,null,null,null,null,9]
["i scaling factor for colonization",0.9,null,{"$f":"ROW()","v":12},0,0,0,0,0,0,0,0,0,0,null,null,null,null,null,null,null,null,null,null,null,null,10]
["e scaling factor for extinction",0.5,null,null,null,null,null,null,null,null,null,null,null,null,null,null,null,null,null,null,null,null,null,null,"# occupied",{"$f":"SUMIF(E3:N12,1,P3:Y12)","v":0},11]
[null,null,null,null,null,null,null,null,null,null,null,null,null,null,null,"Landscape occupancy, year t + 1",null,null,null,null,null,null,null,null,"f",{"$f":"Z13/B7","v":0},12]
[null,"Mainland Island Model",null,null,null,null,null,null,null,null,null,null,null,null,null,null,null,null,null,null,null,null,null,null,null,null,13]
[null," =IF(P3=0,IF(RAND()<=$B$10,1,0),IF(RAND()<=$B$9,0,1))",null,null,null,null,null,null,null,null,null,null,null,null,null,null,null,null,null,null,null,null,null,null,null,null,14]
[null,null,null,null,null,null,null,null,null,null,null,null,null,null,null,null,null,null,null,null,null,null,null,null,null,null,15]
[null,"Internal Colonization Model",null,null,null,null,null,null,null,null,null,null,null,null,null,null,null,null,null,null,null,null,null,null,null,null,16]
[null," =IF(P3=0,IF(RAND()<=$Z$14*$B$12,1,0),IF(RAND()<=$B$9,0,1))",null,null,null,null,null,null,null,null,null,null,null,null,null,null,null,null,null,null,null,null,null,null,null,null,17]
[null,null,null,null,null,null,null,null,null,null,null,null,null,null,null,null,null,null,null,null,null,null,null,null,null,null,18]
[null,"Rescue Effect Model",null,null,null,null,null,null,null,null,null,null,null,null,null,null,null,null,null,null,null,null,null,null,null,null,19]
[null," =IF(P3=0,IF(RAND()<=$B$10,1,0),IF(RAND()<=(1-$Z$14)*$B$13,0,1))",null,null,null,null,null,null,null,null,null,null,null,null,null,null,null,null,null,null,null,null,null,null,null,null,20]
[null,null,null,null,null,null,null,null,null,null,null,null,null,null,null,null,null,null,null,null,null,null,null,null,null,null,21]
[null,"Rescue Effect on Extinction and Internal Colonization",null,null,null,null,null,null,null,null,null,null,null,null,null,null,null,null,null,null,null,null,null,null,null,null,22]
[null," =IF(P3=0,IF(RAND()<=$Z$14*$B$12,1,0),IF(RAND()<=(1-$Z$14)*$B$13,0,1))",null,null,null,null,null,null,null,null,null,null,null,null,null,null,null,null,null,null,null,null,null,null,null,null,23]
[null,null,null,null,null,null,null,null,null,null,null,null,null,null,null,null,null,null,null,null,null,null,null,null,"# occupied",{"$f":"SUMIF(E3:N12,1,P16:Y25)","v":0},24]
[null,null,null,null,null,null,null,null,null,null,null,null,null,null,null,null,null,null,null,null,null,null,null,null,"f",{"$f":"Z26/B7","v":0},25]